[Event "Swedish U16 Team Championship 2019 - Final"]
[Site "Molnlycke Kulturhus, Biblioteksgatan 2, Molnlycke, Sweden"]
[Date "2019.08.16"]
[Round "2.12"]
[White "Johansson, William 2007"]
[Black "Anfalt, Erik"]
[Result "1/2-1/2"]
[TimeControl "90 minutes + 30 seconds per move from move one."]
[WhiteElo "1682"]
[BlackElo "1558"]

1. d4 {[%clk 01:30:57]} {[%emt 00:00:02]} Nf6 {[%clk 01:30:58]} {[%emt
00:00:02]} 2. Nf3 {[%clk 01:30:50]} {[%emt 00:00:37]} g6 {[%clk 01:30:58]}
{[%emt 00:00:30]} 3. e3 {[%clk 01:30:58]} {[%emt 00:00:23]} Bg7 {[%clk
01:30:39]} {[%emt 00:00:50]} 4. Bd3 {[%clk 01:31:18]} {[%emt 00:00:10]} d5
{[%clk 01:30:30]} {[%emt 00:00:38]} 5. Nbd2 {[%clk 01:31:30]} {[%emt 00:00:18]}
c5 {[%clk 01:30:07]} {[%emt 00:00:53]} 6. b3 {[%clk 01:31:44]} {[%emt
00:00:16]} O-O {[%clk 01:30:06]} {[%emt 00:00:32]} 7. Bb2 {[%clk 01:32:01]}
{[%emt 00:00:13]} Nc6 {[%clk 01:28:55]} {[%emt 00:01:41]} 8. a3 {[%clk
01:32:08]} {[%emt 00:00:22]} Qc7 {[%clk 01:25:25]} {[%emt 00:04:00]} 9. O-O
{[%clk 01:23:53]} {[%emt 00:08:44]} b6 {[%clk 01:22:31]} {[%emt 00:03:25]} 10.
Qe2 {[%clk 01:22:21]} {[%emt 00:02:02]} Bb7 {[%clk 01:22:13]} {[%emt 00:00:48]}
11. Ne5 {[%clk 01:20:07]} {[%emt 00:02:45]} Nxe5 {[%clk 01:21:27]} {[%emt
00:01:15]} 12. dxe5 {[%clk 01:20:21]} {[%emt 00:00:16]} Nd7 {[%clk 01:21:43]}
{[%emt 00:00:14]} 13. f4 {[%clk 01:20:22]} {[%emt 00:00:29]} e6 {[%clk
01:19:42]} {[%emt 00:02:30]} 14. Nf3 {[%clk 01:12:53]} {[%emt 00:08:01]} Rac8
{[%clk 01:18:11]} {[%emt 00:02:01]} 15. Bb5 {[%clk 01:08:45]} {[%emt 00:04:36]}
Nb8 {[%clk 01:15:35]} {[%emt 00:03:06]} 16. Nd2 {[%clk 01:00:53]} {[%emt
00:08:23]} a6 {[%clk 01:14:18]} {[%emt 00:01:46]} 17. Bd3 {[%clk 01:00:40]}
{[%emt 00:00:43]} b5 {[%clk 01:13:48]} {[%emt 00:01:00]} 18. c4 {[%clk
00:57:50]} {[%emt 00:03:20]} bxc4 {[%clk 01:02:15]} {[%emt 00:12:04]} 19. bxc4
{[%clk 00:57:29]} {[%emt 00:00:51]} Rfd8 {[%clk 00:43:41]} {[%emt 00:19:04]} 20.
Rad1 {[%clk 00:48:34]} {[%emt 00:09:24]} Qb6 {[%clk 00:33:11]} {[%emt
00:10:59]} 21. Bc3 {[%clk 00:44:31]} {[%emt 00:04:33]} Nc6 {[%clk 00:28:10]}
{[%emt 00:05:31]} 22. Rb1 {[%clk 00:38:47]} {[%emt 00:06:14]} Qa7 {[%clk
00:28:19]} {[%emt 00:00:21]} 23. cxd5 {[%clk 00:37:53]} {[%emt 00:01:25]} exd5
{[%clk 00:28:30]} {[%emt 00:00:19]} 24. Rxb7 {[%clk 00:37:58]} {[%emt
00:00:25]} Qxb7 {[%clk 00:28:36]} {[%emt 00:00:24]} 25. Bxa6 {[%clk 00:38:12]}
{[%emt 00:00:15]} Qa7 {[%clk 00:25:10]} {[%emt 00:03:56]} 26. Bxc8 {[%clk
00:38:16]} {[%emt 00:00:26]} Rxc8 {[%clk 00:25:38]} {[%emt 00:00:02]} 27. Bb2
{[%clk 00:30:15]} {[%emt 00:08:31]} Rb8 {[%clk 00:25:41]} {[%emt 00:00:26]} 28.
Rb1 {[%clk 00:28:17]} {[%emt 00:02:28]} c4 {[%clk 00:18:59]} {[%emt 00:07:12]}
29. Qe1 {[%clk 00:16:02]} {[%emt 00:12:45]} Bf8 {[%clk 00:18:33]} {[%emt
00:00:55]} 30. f5 {[%clk 00:14:52]} {[%emt 00:01:41]} Bxa3 {[%clk 00:15:20]}
{[%emt 00:03:42]} 31. Bxa3 {[%clk 00:14:59]} {[%emt 00:00:23]} Qxa3 {[%clk
00:15:47]} {[%emt 00:00:04]} 32. Rxb8+ {[%clk 00:15:04]} {[%emt 00:00:25]} Nxb8
{[%clk 00:16:14]} {[%emt 00:00:03]} 33. fxg6 {[%clk 00:10:58]} {[%emt
00:04:37]} hxg6 {[%clk 00:16:19]} {[%emt 00:00:24]} 34. Nb1 {[%clk 00:08:19]}
{[%emt 00:03:09]} Qe7 {[%clk 00:15:56]} {[%emt 00:00:53]} 35. Qd2 {[%clk
00:04:37]} {[%emt 00:04:12]} Qxe5 {[%clk 00:15:03]} {[%emt 00:01:22]} 36. Nc3
{[%clk 00:04:56]} {[%emt 00:00:11]} Nc6 {[%clk 00:13:47]} {[%emt 00:01:47]} 37.
Nxd5 {[%clk 00:05:09]} {[%emt 00:00:17]} Qd6 {[%clk 00:12:59]} {[%emt
00:01:16]} 38. e4 {[%clk 00:04:04]} {[%emt 00:01:37]} Qc5+ {[%clk 00:12:16]}
{[%emt 00:01:12]} 39. Kh1 {[%clk 00:03:57]} {[%emt 00:00:38]} Qa3 {[%clk
00:10:50]} {[%emt 00:01:54]} 40. Qe1 {[%clk 00:01:43]} {[%emt 00:02:45]} Nd4
{[%clk 00:08:51]} {[%emt 00:02:28]} 41. Qc3 {[%clk 00:01:08]} {[%emt 00:01:05]}
Qxc3 {[%clk 00:07:46]} {[%emt 00:01:35]} 42. Nxc3 {[%clk 00:01:28]} {[%emt
00:00:10]} Kg7 {[%clk 00:08:08]} {[%emt 00:00:08]} 43. Kg1 {[%clk 00:01:50]}
{[%emt 00:00:08]} Kf6 {[%clk 00:08:29]} {[%emt 00:00:10]} 44. Kf2 {[%clk
00:02:09]} {[%emt 00:00:11]} Ke5 {[%clk 00:08:44]} {[%emt 00:00:15]} 45. Ke3
{[%clk 00:02:30]} {[%emt 00:00:10]} Ne6 {[%clk 00:07:46]} {[%emt 00:01:27]} 46.
g3 {[%clk 00:01:14]} {[%emt 00:01:46]} f6 {[%clk 00:07:46]} {[%emt 00:00:29]}
47. h4 {[%clk 00:01:14]} {[%emt 00:00:30]} f5 {[%clk 00:07:22]} {[%emt
00:00:55]} 48. exf5 {[%clk 00:00:37]} {[%emt 00:01:07]} Kxf5 {[%clk 00:07:49]}
{[%emt 00:00:02]} 49. Ne4 {[%clk 00:00:35]} {[%emt 00:00:33]} Kg4 {[%clk
00:07:26]} {[%emt 00:00:52]} 50. Kf2 {[%clk 00:00:42]} {[%emt 00:00:24]} Nd4
{[%clk 00:06:46]} {[%emt 00:01:09]} 51. Ke3 {[%clk 00:00:43]} {[%emt 00:00:29]}
Nf5+ {[%clk 00:07:11]} {[%emt 00:00:05]} 52. Kf2 {[%clk 00:00:47]} {[%emt
00:00:26]} Nxg3 {[%clk 00:04:15]} {[%emt 00:03:26]} 53. Nxg3 {[%clk 00:01:06]}
{[%emt 00:00:11]} c3 {[%clk 00:04:43]} {[%emt 00:00:02]} 54. Ne2 {[%clk
00:01:11]} {[%emt 00:00:24]} c2 {[%clk 00:05:10]} {[%emt 00:00:03]} 55. Ke3
{[%clk 00:01:05]} {[%emt 00:00:36]} Kxh4 {[%clk 00:04:53]} {[%emt 00:00:47]} 56.
Kd2 {[%clk 00:01:24]} {[%emt 00:00:12]} Kg4 {[%clk 00:04:56]} {[%emt 00:00:28]}
57. Kxc2 {[%clk 00:01:47]} {[%emt 00:00:05]} Kf3 {[%clk 00:05:09]} {[%emt
00:00:17]} 58. Kd2 {[%clk 00:01:38]} {[%emt 00:00:39]} g5 {[%clk 00:05:24]}
{[%emt 00:00:15]} 59. Ke1 {[%clk 00:01:53]} {[%emt 00:00:15]} g4 {[%clk
00:05:49]} {[%emt 00:00:05]} 60. Kf1 {[%clk 00:02:08]} {[%emt 00:00:15]}
1/2-1/2

[Event "Swedish U16 Team Championship 2019 - Final"]
[Site "Molnlycke Kulturhus, Biblioteksgatan 2, Molnlycke, Sweden"]
[Date "2019.08.16"]
[Round "2.13"]
[White "Rasmusson, Max"]
[Black "Rasti, Arvin"]
[Result "0-1"]
[TimeControl "90 minutes + 30 seconds per move from move one."]
[WhiteElo "1624"]
[BlackElo "2116"]

1. g3 {[%clk 01:30:50]} {[%emt 00:00:08]} g6 {[%clk 01:29:50]} {[%emt
00:01:12]} 2. c4 {[%clk 01:30:45]} {[%emt 00:00:35]} c5 {[%clk 01:29:22]}
{[%emt 00:00:57]} 3. Nc3 {[%clk 01:30:46]} {[%emt 00:00:29]} Bg7 {[%clk
01:29:44]} {[%emt 00:00:08]} 4. Bg2 {[%clk 01:31:08]} {[%emt 00:00:09]} Nc6
{[%clk 01:30:05]} {[%emt 00:00:09]} 5. d3 {[%clk 01:31:08]} {[%emt 00:00:30]}
e5 {[%clk 01:28:52]} {[%emt 00:01:43]} 6. Nf3 {[%clk 01:30:54]} {[%emt
00:00:44]} Nge7 {[%clk 01:29:06]} {[%emt 00:00:16]} 7. O-O {[%clk 01:30:41]}
{[%emt 00:00:42]} d6 {[%clk 01:28:00]} {[%emt 00:01:35]} 8. Rb1 {[%clk
01:29:28]} {[%emt 00:01:46]} O-O {[%clk 01:28:04]} {[%emt 00:00:26]} 9. a3
{[%clk 01:26:56]} {[%emt 00:03:02]} a5 {[%clk 01:28:29]} {[%emt 00:00:05]} 10.
Nb5 {[%clk 01:26:53]} {[%emt 00:00:32]} h6 {[%clk 01:23:42]} {[%emt 00:05:17]}
11. e4 {[%clk 01:18:27]} {[%emt 00:08:57]} f5 {[%clk 01:21:33]} {[%emt
00:02:38]} 12. Ne1 {[%clk 01:12:58]} {[%emt 00:05:59]} Be6 {[%clk 01:19:14]}
{[%emt 00:02:48]} 13. Nc2 {[%clk 01:12:28]} {[%emt 00:01:01]} Qd7 {[%clk
01:16:11]} {[%emt 00:03:32]} 14. Ne3 {[%clk 01:09:11]} {[%emt 00:03:48]} Nd4
{[%clk 01:06:00]} {[%emt 00:10:41]} 15. Nxd4 {[%clk 01:08:23]} {[%emt
00:01:17]} exd4 {[%clk 01:06:01]} {[%emt 00:00:29]} 16. Nd5 {[%clk 01:08:06]}
{[%emt 00:00:48]} Nxd5 {[%clk 01:06:14]} {[%emt 00:00:17]} 17. exd5 {[%clk
01:08:02]} {[%emt 00:00:34]} Bf7 {[%clk 01:06:39]} {[%emt 00:00:05]} 18. b4
{[%clk 01:04:28]} {[%emt 00:04:04]} b6 {[%clk 01:04:34]} {[%emt 00:02:35]} 19.
bxc5 {[%clk 01:04:30]} {[%emt 00:00:28]} bxc5 {[%clk 01:04:57]} {[%emt
00:00:07]} 20. Bd2 {[%clk 01:04:05]} {[%emt 00:00:55]} a4 {[%clk 00:56:29]}
{[%emt 00:08:58]} 21. Rb5 {[%clk 00:57:26]} {[%emt 00:07:08]} Rfb8 {[%clk
00:54:19]} {[%emt 00:02:40]} 22. Qb1 {[%clk 00:55:29]} {[%emt 00:02:27]} Qc7
{[%clk 00:49:55]} {[%emt 00:04:54]} 23. Qc2 {[%clk 00:40:43]} {[%emt 00:15:17]}
Rxb5 {[%clk 00:44:57]} {[%emt 00:05:28]} 24. cxb5 {[%clk 00:41:04]} {[%emt
00:00:09]} Qb6 {[%clk 00:45:12]} {[%emt 00:00:15]} 25. Rb1 {[%clk 00:40:17]}
{[%emt 00:01:17]} Ra7 {[%clk 00:43:09]} {[%emt 00:02:33]} 26. h4 {[%clk
00:39:15]} {[%emt 00:01:32]} Be8 {[%clk 00:41:12]} {[%emt 00:02:27]} 27. Qc4
{[%clk 00:39:13]} {[%emt 00:00:32]} Kh7 {[%clk 00:40:40]} {[%emt 00:01:02]} 28.
Bf3 {[%clk 00:38:18]} {[%emt 00:01:26]} Rb7 {[%clk 00:33:24]} {[%emt 00:07:46]}
29. Qxa4 {[%clk 00:38:01]} {[%emt 00:00:47]} Bxb5 {[%clk 00:33:31]} {[%emt
00:00:24]} 30. Qb3 {[%clk 00:37:49]} {[%emt 00:00:41]} Qc7 {[%clk 00:30:54]}
{[%emt 00:03:06]} 31. a4 {[%clk 00:34:38]} {[%emt 00:03:42]} Ba6 {[%clk
00:26:43]} {[%emt 00:04:41]} 32. Qc2 {[%clk 00:34:54]} {[%emt 00:00:14]} Rxb1+
{[%clk 00:26:41]} {[%emt 00:00:32]} 33. Qxb1 {[%clk 00:35:22]} {[%emt
00:00:02]} c4 {[%clk 00:26:44]} {[%emt 00:00:27]} 34. dxc4 {[%clk 00:34:03]}
{[%emt 00:01:50]} Qxc4 {[%clk 00:25:57]} {[%emt 00:01:16]} 35. Bf4 {[%clk
00:28:42]} {[%emt 00:05:51]} Bf8 {[%clk 00:16:55]} {[%emt 00:09:32]} 36. Qa1
{[%clk 00:18:06]} {[%emt 00:11:06]} Be7 {[%clk 00:12:31]} {[%emt 00:04:53]} 37.
Qc1 {[%clk 00:16:46]} {[%emt 00:01:49]} Qxc1+ {[%clk 00:06:09]} {[%emt
00:06:52]} 38. Bxc1 {[%clk 00:17:08]} {[%emt 00:00:08]} g5 {[%clk 00:06:20]}
{[%emt 00:00:19]} 39. hxg5 {[%clk 00:17:10]} {[%emt 00:00:28]} hxg5 {[%clk
00:06:50]} 40. Bd2 {[%clk 00:15:14]} {[%emt 00:02:26]} Kg6 {[%clk 00:06:11]}
{[%emt 00:01:08]} 41. Bg2 {[%clk 00:12:55]} {[%emt 00:02:49]} Bd8 {[%clk
00:04:04]} {[%emt 00:02:38]} 42. f4 {[%clk 00:12:23]} {[%emt 00:01:02]} g4
{[%clk 00:04:06]} {[%emt 00:00:29]} 43. a5 {[%clk 00:12:12]} {[%emt 00:00:40]}
Bc4 {[%clk 00:02:33]} {[%emt 00:02:02]} 44. Kf2 {[%clk 00:11:58]} {[%emt
00:00:45]} Kf7 {[%clk 00:02:45]} {[%emt 00:00:18]} 45. Ke1 {[%clk 00:09:22]}
{[%emt 00:03:06]} Ke7 {[%clk 00:02:34]} {[%emt 00:00:41]} 46. Kf2 {[%clk
00:09:26]} {[%emt 00:00:26]} Kd7 {[%clk 00:02:41]} {[%emt 00:00:23]} 47. Ke1
{[%clk 00:08:58]} {[%emt 00:00:57]} Kc8 {[%clk 00:02:51]} {[%emt 00:00:21]} 48.
Kf2 {[%clk 00:07:32]} {[%emt 00:01:56]} Kb7 {[%clk 00:02:24]} {[%emt 00:00:55]}
49. Bb4 {[%clk 00:07:06]} {[%emt 00:00:58]} Bc7 {[%clk 00:02:18]} {[%emt
00:00:36]} 50. Kg1 {[%clk 00:06:56]} {[%emt 00:00:40]} Bb8 {[%clk 00:01:44]}
{[%emt 00:01:03]} 51. Kf2 {[%clk 00:07:15]} {[%emt 00:00:11]} Ka6 {[%clk
00:01:31]} {[%emt 00:00:44]} 52. Bf1 {[%clk 00:04:48]} {[%emt 00:02:56]} Bxf1
{[%clk 00:00:44]} {[%emt 00:01:19]} 53. Kxf1 {[%clk 00:05:16]} {[%emt
00:00:01]} Kb5 {[%clk 00:01:03]} {[%emt 00:00:11]} 54. Bd2 {[%clk 00:04:59]}
{[%emt 00:00:47]} Bc7 {[%clk 00:00:56]} {[%emt 00:00:37]} 55. Ke2 {[%clk
00:04:48]} {[%emt 00:00:40]} Bxa5 {[%clk 00:01:01]} {[%emt 00:00:26]} 56. Bxa5
{[%clk 00:05:17]} {[%emt 00:00:01]} Kxa5 {[%clk 00:01:30]} 57. Kd3 {[%clk
00:05:37]} {[%emt 00:00:09]} Kb5 {[%clk 00:01:49]} {[%emt 00:00:11]} 58. Kxd4
{[%clk 00:06:01]} {[%emt 00:00:08]} Kb4 {[%clk 00:02:14]} {[%emt 00:00:04]} 0-1

[Event "Swedish U16 Team Championship 2019 - Final"]
[Site "Molnlycke Kulturhus, Biblioteksgatan 2, Molnlycke, Sweden"]
[Date "2019.08.16"]
[Round "2.14"]
[White "Lindholm, Gustav"]
[Black "Holmquist, Oliver 2006"]
[Result "1-0"]
[TimeControl "90 minutes + 30 seconds per move from move one."]
[WhiteElo "2006"]
[BlackElo "1137"]

1. d4 {[%clk 01:30:57]} {[%emt 00:00:02]} d5 {[%clk 01:30:53]} {[%emt
00:00:08]} 2. c4 {[%clk 01:31:23]} {[%emt 00:00:04]} e6 {[%clk 01:30:41]}
{[%emt 00:00:42]} 3. Nc3 {[%clk 01:31:44]} {[%emt 00:00:08]} Nf6 {[%clk
01:30:30]} {[%emt 00:00:42]} 4. Bg5 {[%clk 01:31:47]} {[%emt 00:00:27]} h6
{[%clk 01:30:13]} {[%emt 00:00:48]} 5. Bxf6 {[%clk 01:31:23]} {[%emt 00:00:53]}
Qxf6 {[%clk 01:30:27]} {[%emt 00:00:15]} 6. cxd5 {[%clk 01:31:11]} {[%emt
00:00:42]} exd5 {[%clk 01:29:29]} {[%emt 00:01:29]} 7. Nxd5 {[%emt 00:04:49]}
Qd6 {[%clk 01:27:26]} {[%emt 00:00:34]} 8. Nc3 {[%emt 00:04:25]} Nc6 {[%emt
00:00:59]} 9. e3 {[%emt 00:01:54]} Bf5 {[%clk 01:23:23]} {[%emt 00:00:27]} 10.
Nf3 {[%clk 01:24:16]} {[%emt 00:03:23]} Bg4 {[%clk 01:22:58]} {[%emt 00:00:55]}
11. Be2 {[%emt 00:03:33]} Be7 {[%emt 00:01:17]} 12. O-O {[%clk 01:24:12]}
{[%emt 00:00:36]} a6 {[%clk 01:19:00]} {[%emt 00:00:36]} 13. Rc1 {[%clk
01:22:50]} {[%emt 00:01:51]} Bg5 {[%clk 01:14:07]} {[%emt 00:05:24]} 14. Qa4
{[%clk 01:16:30]} {[%emt 00:06:48]} Bxf3 15. Bxf3 {[%clk 01:16:36]} O-O {[%clk
01:07:17]} {[%emt 00:00:53]} 16. Ne4 {[%clk 01:14:27]} {[%emt 00:02:39]} Qe7
{[%clk 01:01:10]} {[%emt 00:06:36]} 17. Nxg5 {[%clk 01:14:41]} {[%emt
00:00:17]} Qxg5 {[%clk 01:00:42]} {[%emt 00:00:58]} 18. Bxc6 {[%clk 01:14:56]}
{[%emt 00:00:15]} bxc6 {[%clk 01:00:52]} {[%emt 00:00:20]} 19. Rxc6 {[%clk
01:15:14]} {[%emt 00:00:12]} Qe7 {[%clk 00:57:56]} {[%emt 00:03:10]} 20. Rfc1
{[%clk 01:15:20]} {[%emt 00:00:40]} Ra7 {[%clk 00:57:20]} {[%emt 00:01:05]} 21.
Rxa6 {[%clk 01:15:36]} {[%emt 00:00:14]} Rxa6 {[%clk 00:57:16]} {[%emt
00:00:35]} 22. Qxa6 {[%clk 01:15:59]} {[%emt 00:00:06]} Qb4 {[%clk 00:57:27]}
{[%emt 00:00:12]} 23. Qa3 {[%clk 01:15:43]} {[%emt 00:00:52]} Rb8 {[%emt
00:01:00]} 24. Qxb4 {[%clk 01:16:00]} {[%emt 00:00:05]} Rxb4 {[%clk 00:57:24]}
{[%emt 00:00:12]} 25. b3 {[%emt 00:00:11]} Rb7 {[%clk 00:57:41]} {[%emt
00:00:07]} 26. Kf1 {[%clk 01:16:44]} {[%emt 00:00:11]} f5 {[%clk 00:57:40]}
{[%emt 00:00:31]} 27. Ke2 {[%clk 01:17:12]} {[%emt 00:00:03]} Kf7 {[%clk
00:57:58]} {[%emt 00:00:12]} 28. Rc6 {[%clk 01:17:17]} {[%emt 00:00:23]} Ra7
{[%clk 00:58:10]} {[%emt 00:00:19]} 29. a4 {[%clk 01:17:38]} {[%emt 00:00:09]}
Rb7 {[%clk 00:58:32]} {[%emt 00:00:09]} 30. a5 {[%clk 01:17:49]} {[%emt
00:00:19]} Rxb3 {[%clk 00:58:43]} {[%emt 00:00:19]} 31. Rxc7+ {[%clk 01:18:10]}
{[%emt 00:00:08]} Kg6 {[%clk 00:59:09]} {[%emt 00:00:05]} 32. a6 {[%clk
01:18:19]} {[%emt 00:00:21]} Ra3 {[%clk 00:59:14]} {[%emt 00:00:26]} 33. a7
{[%clk 01:18:40]} {[%emt 00:00:08]} Kf6 {[%emt 00:00:31]} 34. Kf3 {[%clk
01:18:22]} {[%emt 00:00:34]} g5 {[%clk 00:59:36]} {[%emt 00:00:23]} 35. Rc6+
{[%clk 01:18:35]} {[%emt 00:00:16]} Ke7 {[%clk 00:59:15]} {[%emt 00:00:51]} 36.
Rxh6 {[%clk 01:18:56]} {[%emt 00:00:09]} Rxa7 {[%clk 00:59:39]} {[%emt
00:00:06]} 37. Rh7+ {[%clk 01:19:22]} {[%emt 00:00:04]} 1-0

[Event "Swedish U16 Team Championship 2019 - Final"]
[Site "Molnlycke Kulturhus, Biblioteksgatan 2, Molnlycke, Sweden"]
[Date "2019.08.16"]
[Round "2.15"]
[White "Nordin, Marcus 2007"]
[Black "Strom-Engdahl, Alexander"]
[Result "0-1"]
[TimeControl "90 minutes + 30 seconds per move from move one."]
[WhiteElo "1162"]
[BlackElo "1858"]

1. e4 {[%clk 01:30:47]} {[%emt 00:00:12]} e5 {[%clk 01:30:22]} {[%emt
00:00:38]} 2. Nf3 {[%clk 01:30:39]} {[%emt 00:00:38]} Nf6 {[%clk 01:30:38]}
{[%emt 00:00:15]} 3. Nc3 {[%clk 01:30:36]} {[%emt 00:00:33]} Nc6 {[%clk
01:30:55]} {[%emt 00:00:12]} 4. Bc4 {[%clk 01:29:56]} {[%emt 00:01:11]} Be7
{[%clk 01:29:32]} {[%emt 00:01:51]} 5. d3 {[%clk 01:29:57]} {[%emt 00:00:31]}
O-O {[%clk 01:29:46]} {[%emt 00:00:15]} 6. Bg5 {[%clk 01:30:00]} {[%emt
00:00:27]} d6 {[%clk 01:29:50]} {[%emt 00:00:27]} 7. h3 {[%clk 01:30:20]}
{[%emt 00:00:10]} Be6 {[%clk 01:29:36]} {[%emt 00:00:44]} 8. Bb3 {[%clk
01:30:10]} {[%emt 00:00:40]} h6 {[%clk 01:23:26]} {[%emt 00:06:39]} 9. Bh4
{[%clk 01:30:23]} {[%emt 00:00:17]} Qd7 {[%clk 01:23:32]} {[%emt 00:00:25]} 10.
O-O {[%clk 01:30:36]} {[%emt 00:00:17]} Ne8 {[%clk 01:19:23]} {[%emt 00:04:39]}
11. Bxe6 {[%clk 01:29:32]} {[%emt 00:01:35]} fxe6 {[%clk 01:19:12]} {[%emt
00:00:41]} 12. Qe2 {[%clk 01:28:45]} {[%emt 00:01:17]} Bxh4 {[%clk 01:12:38]}
{[%emt 00:07:04]} 13. Nxh4 {[%clk 01:28:42]} Nd4 {[%clk 01:12:57]} {[%emt
00:00:44]} 14. Qd2 {[%clk 01:25:32]} {[%emt 00:03:45]} g5 {[%clk 01:12:19]} 15.
Nf3 {[%clk 01:25:32]} Rxf3 {[%clk 01:12:19]} {[%emt 00:02:04]} 16. h4 {[%clk
01:22:18]} {[%emt 00:03:43]} Qg7 {[%clk 01:11:48]} {[%emt 00:01:01]} 17. hxg5
{[%clk 01:22:09]} {[%emt 00:00:39]} hxg5 {[%clk 01:12:12]} {[%emt 00:00:06]} 18.
Ne2 {[%clk 01:22:17]} {[%emt 00:00:19]} Nxe2+ {[%clk 01:12:21]} {[%emt
00:00:23]} 19. Qxe2 {[%clk 01:22:36]} {[%emt 00:00:12]} Rf6 {[%clk 01:11:40]}
{[%emt 00:01:05]} 20. f3 {[%clk 01:22:02]} {[%emt 00:01:09]} Rh6 {[%clk
01:11:58]} {[%emt 00:00:12]} 21. Kf2 {[%clk 01:22:18]} {[%emt 00:00:12]} Nf6
{[%clk 01:12:11]} {[%emt 00:00:19]} 22. Rh1 {[%clk 01:20:52]} {[%emt 00:03:44]}
Kf7 {[%clk 01:12:25]} 23. g4 {[%clk 01:10:57]} {[%emt 00:08:53]} Rah8 {[%clk
01:12:33]} {[%emt 00:00:22]} 24. Kg2 {[%clk 01:09:43]} {[%emt 00:01:44]} Qh7
{[%clk 01:12:46]} {[%emt 00:00:17]} 25. Qd1 {[%clk 01:06:45]} {[%emt 00:03:28]}
Rh2+ {[%clk 01:13:11]} {[%emt 00:00:05]} 26. Rxh2 {[%clk 01:06:27]} {[%emt
00:00:47]} Qxh2+ {[%clk 01:13:37]} {[%emt 00:00:04]} 27. Kf1 {[%clk 01:06:47]}
{[%emt 00:00:10]} Qg3 {[%clk 01:14:01]} {[%emt 00:00:07]} 28. Qd2 {[%clk
01:03:19]} {[%emt 00:03:57]} Rh1+ {[%clk 01:14:15]} {[%emt 00:00:16]} 29. Ke2
{[%clk 01:03:33]} {[%emt 00:00:16]} Rh2+ {[%clk 01:14:30]} {[%emt 00:00:15]} 30.
Kd1 {[%clk 01:03:34]} {[%emt 00:00:29]} Qxf3+ {[%clk 01:14:46]} {[%emt
00:00:14]} 31. Kc1 {[%clk 01:00:55]} {[%emt 00:03:09]} Rh1+ {[%clk 01:15:10]}
{[%emt 00:00:06]} 32. Qe1 {[%clk 01:01:18]} {[%emt 00:00:07]} Rxe1+ {[%clk
01:15:36]} {[%emt 00:00:04]} 33. Kd2 {[%clk 01:01:39]} {[%emt 00:00:09]} Nxe4+
{[%clk 01:15:54]} {[%emt 00:00:11]} 34. dxe4 {[%clk 01:01:31]} {[%emt
00:00:39]} Qe3# {[%clk 01:16:17]} {[%emt 00:00:07]} 0-1